[Event "*** Titled Tuesday 3|2 Blitz"]
[Site "Chess.com"]
[Date "2017.06.06"]
[Round "8"]
[White "GameOverBro"]
[Black "TregubovP"]
[Result "1-0"]
[WhiteElo "2255"]
[BlackElo "2326"]
[TimeControl "180+2"]
[EndTime "15:36:33 PDT"]
[Termination "GameOverBro won by resignation"]

1. e4 {[%clk 0:03:02]} 1... c5 {[%clk 0:02:59.9]} 2. Ne2 {[%clk 0:03:02.6]} 2...
Nc6 {[%clk 0:02:59.1]} 3. Nbc3 {[%clk 0:03:02.3]} 3... e6 {[%clk 0:02:59.5]} 4.
d4 {[%clk 0:02:56.2]} 4... cxd4 {[%clk 0:02:59.9]} 5. Nxd4 {[%clk 0:02:58.1]}
5... Nf6 {[%clk 0:03:01.5]} 6. Nxc6 {[%clk 0:02:49.9]} 6... bxc6 {[%clk
0:03:01.3]} 7. e5 {[%clk 0:02:50.9]} 7... Nd5 {[%clk 0:03:02.2]} 8. Ne4 {[%clk
0:02:48.4]} 8... Qc7 {[%clk 0:03:03.4]} 9. f4 {[%clk 0:02:40.1]} 9... Qb6 {[%clk
0:03:04.6]} 10. Qf3 {[%clk 0:02:34.9]} 10... f5 {[%clk 0:02:55.9]} 11. Nf2
{[%clk 0:02:23.9]} 11... Ba6 {[%clk 0:02:52.7]} 12. a3 {[%clk 0:02:21.1]} 12...
Bxf1 {[%clk 0:02:51.1]} 13. Kxf1 {[%clk 0:02:20.2]} 13... a5 {[%clk 0:02:20.1]}
14. g3 {[%clk 0:02:11.6]} 14... a4 {[%clk 0:02:14.5]} 15. Kg2 {[%clk 0:02:11.1]}
15... Qa6 {[%clk 0:02:03.4]} 16. Nd3 {[%clk 0:02:00.5]} 16... Be7 {[%clk
0:02:02.7]} 17. Bd2 {[%clk 0:01:42.5]} 17... O-O {[%clk 0:02:02.2]} 18. Rac1
{[%clk 0:01:38.9]} 18... Qc4 {[%clk 0:02:02.9]} 19. Be1 {[%clk 0:01:23.5]} 19...
Rfb8 {[%clk 0:02:02.4]} 20. Bf2 {[%clk 0:01:24.1]} 20... Rb5 {[%clk 0:01:56.1]}
21. Rhd1 {[%clk 0:01:20.6]} 21... Rab8 {[%clk 0:01:56.1]} 22. h4 {[%clk
0:01:17.2]} 22... h6 {[%clk 0:01:55.4]} 23. h5 {[%clk 0:01:17.9]} 23... Rxb2
{[%clk 0:01:46.5]} 24. Nxb2 {[%clk 0:01:17.4]} 24... Rxb2 {[%clk 0:01:48]} 25.
Qd3 {[%clk 0:01:12.9]} 25... Qe4+ {[%clk 0:01:22.5]} 26. Qxe4 {[%clk 0:01:07.9]}
26... fxe4 {[%clk 0:01:23.4]} 27. Re1 {[%clk 0:01:01.7]} 27... Bxa3 {[%clk
0:01:11.3]} 28. Rxe4 {[%clk 0:01:02.1]} 28... Ra2 {[%clk 0:01:12.2]} 29. Rxa4
{[%clk 0:00:47.7]} 29... Nc3 {[%clk 0:01:05.6]} 30. Ra8+ {[%clk 0:00:46.5]}
30... Kf7 {[%clk 0:01:07]} 31. Re1 {[%clk 0:00:42.2]} 31... Be7 {[%clk
0:00:39.5]} 32. Rxa2 {[%clk 0:00:41.6]} 32... Nxa2 {[%clk 0:00:40.8]} 33. Ra1
{[%clk 0:00:41.2]} 33... Nb4 {[%clk 0:00:41.4]} 34. Ra7 {[%clk 0:00:41.4]} 34...
Ke8 {[%clk 0:00:41.2]} 35. c3 {[%clk 0:00:42.5]} 35... Nd5 {[%clk 0:00:38.8]}
36. c4 {[%clk 0:00:42.6]} 36... Nb4 {[%clk 0:00:36.8]} 37. Kf3 {[%clk
0:00:39.1]} 37... Nd3 {[%clk 0:00:36.6]} 38. Be3 {[%clk 0:00:36.9]} 38... Nb2
{[%clk 0:00:37.4]} 39. c5 {[%clk 0:00:33.2]} 39... Nd3 {[%clk 0:00:36]} 40. Ra5
{[%clk 0:00:33.7]} 40... Nb4 {[%clk 0:00:36.9]} 41. Ke4 {[%clk 0:00:33.2]} 41...
Nd5 {[%clk 0:00:37.4]} 42. Bd4 {[%clk 0:00:33.3]} 42... Kf7 {[%clk 0:00:34.1]}
43. Ra7 {[%clk 0:00:33.9]} 43... Ke8 {[%clk 0:00:35.1]} 44. g4 {[%clk
0:00:35.4]} 44... Nb4 {[%clk 0:00:32.3]} 45. f5 {[%clk 0:00:35.6]} 45... exf5+
{[%clk 0:00:31.6]} 46. gxf5 {[%clk 0:00:37.5]} 46... Nd5 {[%clk 0:00:32.3]} 47.
e6 {[%clk 0:00:38.2]} 47... dxe6 {[%clk 0:00:32.3]} 48. fxe6 {[%clk 0:00:40.1]}
48... Bf6 {[%clk 0:00:32.8]} 49. Rxg7 {[%clk 0:00:34.8]} 49... Bxg7 {[%clk
0:00:29.1]} 50. Bxg7 {[%clk 0:00:36.7]} 50... Ke7 {[%clk 0:00:18.3]} 51. Ke5
{[%clk 0:00:37.1]} 51... Nc7 {[%clk 0:00:15.8]} 52. Bf6+ {[%clk 0:00:35.4]}
52... Ke8 {[%clk 0:00:16.9]} 53. Kd6 {[%clk 0:00:35.8]} 53... Nb5+ {[%clk
0:00:16.8]} 54. Kxc6 {[%clk 0:00:36.9]} 1-0

[Event "*** Titled Tuesday 3|2 Blitz"]
[Site "Chess.com"]
[Date "2017.06.06"]
[Round "8"]
[White "Vamostodorecto"]
[Black "axvesik"]
[Result "1/2-1/2"]
[WhiteElo "2324"]
[BlackElo "2351"]
[TimeControl "180+2"]
[EndTime "15:36:35 PDT"]
[Termination "Game drawn by agreement"]

1. d4 {[%clk 0:02:57.5]} 1... Nf6 {[%clk 0:03:00.1]} 2. c4 {[%clk 0:02:58.3]}
2... e6 {[%clk 0:03:01.1]} 3. Nc3 {[%clk 0:02:59.1]} 3... Bb4 {[%clk 0:03:01.9]}
4. a3 {[%clk 0:03:00.6]} 4... Bxc3+ {[%clk 0:03:02.6]} 5. bxc3 {[%clk
0:03:02.5]} 5... O-O {[%clk 0:03:02]} 6. f3 {[%clk 0:03:03.1]} 6... c5 {[%clk
0:03:03]} 7. e4 {[%clk 0:03:03.5]} 7... Nc6 {[%clk 0:03:00.6]} 8. Be3 {[%clk
0:02:59.8]} 8... Qa5 {[%clk 0:02:27]} 9. Qd2 {[%clk 0:02:59.3]} 9... b6 {[%clk
0:02:19]} 10. Bd3 {[%clk 0:02:57.6]} 10... Ba6 {[%clk 0:02:19.9]} 11. a4 {[%clk
0:02:54.2]} 11... cxd4 {[%clk 0:02:13.5]} 12. cxd4 {[%clk 0:02:56.1]} 12...
Qxd2+ {[%clk 0:02:14.2]} 13. Kxd2 {[%clk 0:02:57.4]} 13... Na5 {[%clk
0:02:15.6]} 14. Kc3 {[%clk 0:02:44.6]} 14... Nxc4 {[%clk 0:02:05.7]} 15. Bxc4
{[%clk 0:02:43.4]} 15... Rfc8 {[%clk 0:02:06.3]} 16. Nh3 {[%clk 0:02:26]} 16...
Rxc4+ {[%clk 0:02:06]} 17. Kb3 {[%clk 0:02:27.6]} 17... Rac8 {[%clk 0:02:03.2]}
18. Rac1 {[%clk 0:02:29.1]} 18... d5 {[%clk 0:02:00.4]} 19. e5 {[%clk
0:02:26.9]} 19... Nd7 {[%clk 0:02:01.2]} 20. Rxc4 {[%clk 0:02:24.5]} 20... Bxc4+
{[%clk 0:01:57.4]} 21. Ka3 {[%clk 0:02:19.8]} 21... Ba6 {[%clk 0:01:46.7]} 22.
Rc1 {[%clk 0:02:10]} 22... Rxc1 {[%clk 0:01:47.2]} 23. Bxc1 {[%clk 0:02:11.9]}
23... Bf1 {[%clk 0:01:48.2]} 24. Nf4 {[%clk 0:02:12.8]} 24... g5 {[%clk
0:01:49.1]} 25. Nh5 {[%clk 0:02:13.6]} 25... Bxg2 {[%clk 0:01:49.3]} 26. Bxg5
{[%clk 0:02:11.9]} 26... Bxf3 {[%clk 0:01:50.2]} 27. Nf6+ {[%clk 0:02:13.5]}
27... Nxf6 {[%clk 0:01:48.9]} 28. Bxf6 {[%clk 0:02:15.4]} 28... h5 {[%clk
0:01:44.9]} 29. Kb4 {[%clk 0:02:04.6]} 29... Be2 {[%clk 0:01:44.8]} 30. a5
{[%clk 0:01:52.8]} 30... bxa5+ {[%clk 0:01:44.5]} 31. Kxa5 {[%clk 0:01:54.7]}
31... Kh7 {[%clk 0:01:45]} 32. Kb4 {[%clk 0:01:50.4]} 32... Kg6 {[%clk
0:01:44.9]} 33. Bd8 {[%clk 0:01:41.5]} 33... Kf5 {[%clk 0:01:44.7]} 34. h4
{[%clk 0:01:37.4]} 34... Kg4 {[%clk 0:01:42.2]} 35. Kc5 {[%clk 0:01:36.2]} 35...
a5 {[%clk 0:01:36.7]} 36. Bg5 {[%clk 0:01:04.1]} 36... a4 {[%clk 0:00:55.2]} 37.
Kb4 {[%clk 0:01:04.5]} 37... Bd1 {[%clk 0:00:56.3]} 38. Ka3 {[%clk 0:01:01.5]}
38... Kf5 {[%clk 0:00:56.2]} 39. Bc1 {[%clk 0:00:37.7]} 39... Ke4 {[%clk
0:00:38.9]} 40. Bb2 {[%clk 0:00:37.6]} 40... Kd3 {[%clk 0:00:36]} 41. Kb4 {[%clk
0:00:31]} 41... Ke4 {[%clk 0:00:26.5]} 42. Bc3 {[%clk 0:00:24.5]} 42... Kf5
{[%clk 0:00:22]} 43. Bd2 {[%clk 0:00:22.2]} 43... f6 {[%clk 0:00:22.4]} 44. exf6
{[%clk 0:00:21.9]} 44... Kxf6 {[%clk 0:00:23.9]} 45. Bf4 {[%clk 0:00:18.5]}
45... Kf5 {[%clk 0:00:24.9]} 46. Be5 {[%clk 0:00:18.8]} 46... Kg4 {[%clk
0:00:25.6]} 47. Bf6 {[%clk 0:00:19.5]} 47... Bb3 {[%clk 0:00:25.8]} 48. Ka3
{[%clk 0:00:20.1]} 48... Kf5 {[%clk 0:00:23.7]} 49. Be5 {[%clk 0:00:19.1]} 49...
Ke4 {[%clk 0:00:23.2]} 50. Kb4 {[%clk 0:00:18.9]} 50... Kf3 {[%clk 0:00:20.6]}
51. Ka3 {[%clk 0:00:18.8]} 51... Kg4 {[%clk 0:00:21.4]} 52. Bf6 {[%clk
0:00:19.9]} 52... Kf5 {[%clk 0:00:18.5]} 53. Be5 {[%clk 0:00:20.6]} 1/2-1/2

[Event "*** Titled Tuesday 3|2 Blitz"]
[Site "Chess.com"]
[Date "2017.06.06"]
[Round "8"]
[White "Margency"]
[Black "yian123"]
[Result "1-0"]
[WhiteElo "2540"]
[BlackElo "2413"]
[TimeControl "180+2"]
[EndTime "15:36:51 PDT"]
[Termination "Margency won by resignation"]

1. d4 {[%clk 0:03:02]} 1... d5 {[%clk 0:03:00.3]} 2. Bf4 {[%clk 0:03:02.8]} 2...
Nf6 {[%clk 0:02:55.3]} 3. e3 {[%clk 0:03:03.8]} 3... c6 {[%clk 0:02:53.5]} 4.
Nf3 {[%clk 0:03:01.7]} 4... Qb6 {[%clk 0:02:53.1]} 5. b3 {[%clk 0:03:02]} 5...
Bg4 {[%clk 0:02:53.2]} 6. Bd3 {[%clk 0:02:59.2]} 6... Nbd7 {[%clk 0:02:49.6]} 7.
O-O {[%clk 0:02:59.9]} 7... e6 {[%clk 0:02:47.3]} 8. c4 {[%clk 0:03:00.5]} 8...
Be7 {[%clk 0:02:41.2]} 9. Nc3 {[%clk 0:02:56]} 9... O-O {[%clk 0:02:35]} 10. c5
{[%clk 0:02:56]} 10... Qd8 {[%clk 0:02:30.6]} 11. h3 {[%clk 0:02:56.4]} 11...
Bh5 {[%clk 0:02:29.3]} 12. b4 {[%clk 0:02:57.2]} 12... a6 {[%clk 0:01:15]} 13.
a4 {[%clk 0:02:57.2]} 13... b6 {[%clk 0:01:05.5]} 14. b5 {[%clk 0:02:39.9]}
14... Qc8 {[%clk 0:00:52.6]} 15. cxb6 {[%clk 0:01:54.6]} 15... cxb5 {[%clk
0:00:51.4]} 16. Rc1 {[%clk 0:01:56]} 16... Qb7 {[%clk 0:00:43]} 17. a5 {[%clk
0:01:38.7]} 17... Bb4 {[%clk 0:00:21.4]} 18. g4 {[%clk 0:01:34.4]} 18... Bg6
{[%clk 0:00:21.7]} 19. Bxg6 {[%clk 0:01:35.2]} 19... hxg6 {[%clk 0:00:23.6]} 20.
g5 {[%clk 0:01:11.5]} 20... Ne8 {[%clk 0:00:22.9]} 21. Na4 {[%clk 0:00:50.3]}
21... bxa4 {[%clk 0:00:18.6]} 22. Qxa4 {[%clk 0:00:50.7]} 22... Be7 {[%clk
0:00:07.8]} 23. Bc7 {[%clk 0:00:33.5]} 23... Rd8 {[%clk 0:00:06]} 24. Bxd8
{[%clk 0:00:31.5]} 24... Bxd8 {[%clk 0:00:07.9]} 25. Kg2 {[%clk 0:00:28.5]}
25... Nd6 {[%clk 0:00:08.5]} 26. Qc6 {[%clk 0:00:28]} 26... Qxc6 {[%clk
0:00:08.9]} 27. Rxc6 {[%clk 0:00:29.9]} 27... Nb7 {[%clk 0:00:10.5]} 28. Ra1
{[%clk 0:00:27.8]} 28... Re8 {[%clk 0:00:10.5]} 29. Rc8 {[%clk 0:00:28.6]} 29...
Kf8 {[%clk 0:00:10.9]} 30. h4 {[%clk 0:00:29.7]} 30... Nxa5 {[%clk 0:00:11.5]}
31. Rxa5 {[%clk 0:00:29]} 31... Bxb6 {[%clk 0:00:12.8]} 32. Rxe8+ {[%clk
0:00:29.7]} 32... Kxe8 {[%clk 0:00:14.7]} 33. Rxa6 {[%clk 0:00:31.3]} 33... Bc7
{[%clk 0:00:15.8]} 34. Ra8+ {[%clk 0:00:31.5]} 34... Bd8 {[%clk 0:00:13.4]} 35.
Ne5 {[%clk 0:00:30.7]} 35... Nxe5 {[%clk 0:00:14.2]} 36. dxe5 {[%clk 0:00:31.4]}
36... Ke7 {[%clk 0:00:15.4]} 37. f4 {[%clk 0:00:32.1]} 37... Bb6 {[%clk
0:00:16.2]} 38. Kf3 {[%clk 0:00:33.1]} 38... Bc5 {[%clk 0:00:17.6]} 39. Rb8
{[%clk 0:00:33.2]} 39... Kd7 {[%clk 0:00:17.4]} 40. Rb7+ {[%clk 0:00:34.3]}
40... Ke8 {[%clk 0:00:18.5]} 41. e4 {[%clk 0:00:35.7]} 41... dxe4+ {[%clk
0:00:19.1]} 42. Kxe4 {[%clk 0:00:36.7]} 42... Bf2 {[%clk 0:00:20.7]} 43. Rb1
{[%clk 0:00:32.9]} 43... Bxh4 {[%clk 0:00:20.4]} 44. Kf3 {[%clk 0:00:30.4]}
44... f6 {[%clk 0:00:21.2]} 45. Rh1 {[%clk 0:00:17.5]} 45... fxg5 {[%clk
0:00:20.2]} 46. Kg4 {[%clk 0:00:18.7]} 46... Kf7 {[%clk 0:00:21]} 47. fxg5
{[%clk 0:00:16.4]} 47... Bf2 {[%clk 0:00:21.6]} 48. Rf1 {[%clk 0:00:17.9]} 1-0

[Event "*** Titled Tuesday 3|2 Blitz"]
[Site "Chess.com"]
[Date "2017.06.06"]
[Round "8"]
[White "igorkovalenko"]
[Black "gmcorrales"]
[Result "1-0"]
[WhiteElo "2639"]
[BlackElo "2545"]
[TimeControl "180+2"]
[EndTime "15:37:04 PDT"]
[Termination "igorkovalenko won by checkmate"]

1. e4 {[%clk 0:03:02]} 1... c5 {[%clk 0:03:00.8]} 2. Nf3 {[%clk 0:03:02.2]} 2...
Nc6 {[%clk 0:03:01]} 3. Bb5 {[%clk 0:03:02.7]} 3... g6 {[%clk 0:03:01.7]} 4.
Bxc6 {[%clk 0:03:01.9]} 4... dxc6 {[%clk 0:03:02.9]} 5. d3 {[%clk 0:03:02.1]}
5... Bg7 {[%clk 0:03:04.1]} 6. h3 {[%clk 0:03:03.7]} 6... Nf6 {[%clk 0:03:04.4]}
7. Nc3 {[%clk 0:03:05.3]} 7... Nd7 {[%clk 0:03:02.9]} 8. Be3 {[%clk 0:03:04]}
8... e5 {[%clk 0:03:04.1]} 9. Qd2 {[%clk 0:03:05.2]} 9... h6 {[%clk 0:03:05.1]}
10. a3 {[%clk 0:03:05.1]} 10... Qe7 {[%clk 0:03:05.9]} 11. O-O {[%clk
0:02:58.8]} 11... b6 {[%clk 0:03:06.6]} 12. b4 {[%clk 0:02:57.2]} 12... cxb4
{[%clk 0:03:08.5]} 13. axb4 {[%clk 0:02:59.1]} 13... Qxb4 {[%clk 0:03:09.6]} 14.
Rfb1 {[%clk 0:02:59.6]} 14... Qe7 {[%clk 0:03:10.2]} 15. Bxb6 {[%clk 0:02:59.4]}
15... Nxb6 {[%clk 0:03:10.3]} 16. Rxb6 {[%clk 0:03:00]} 16... axb6 {[%clk
0:03:12.2]} 17. Rxa8 {[%clk 0:03:00.5]} 17... O-O {[%clk 0:03:13.2]} 18. Nd1
{[%clk 0:02:55.8]} 18... Qb7 {[%clk 0:03:12.2]} 19. Ra1 {[%clk 0:02:55.5]} 19...
Be6 {[%clk 0:02:07.5]} 20. Ne3 {[%clk 0:02:54.2]} 20... Ra8 {[%clk 0:01:58]} 21.
Rxa8+ {[%clk 0:02:52.2]} 21... Qxa8 {[%clk 0:01:59.9]} 22. Qb4 {[%clk
0:02:49.5]} 22... b5 {[%clk 0:01:52.4]} 23. Qc5 {[%clk 0:02:36]} 23... f6 {[%clk
0:01:52.6]} 24. Qe7 {[%clk 0:02:32.7]} 24... Qc8 {[%clk 0:01:41.3]} 25. Nh4
{[%clk 0:02:14.1]} 25... Kh7 {[%clk 0:01:33.8]} 26. Nf3 {[%clk 0:01:58.9]} 26...
Qd7 {[%clk 0:01:32.2]} 27. Qc5 {[%clk 0:01:59.9]} 27... Kg8 {[%clk 0:01:31.7]}
28. Nd2 {[%clk 0:02:00.5]} 28... Bf8 {[%clk 0:01:32.3]} 29. Qb6 {[%clk
0:02:01.7]} 29... Kf7 {[%clk 0:01:31.4]} 30. Nf3 {[%clk 0:01:57.5]} 30... h5
{[%clk 0:01:29.7]} 31. d4 {[%clk 0:01:52.6]} 31... Bd6 {[%clk 0:00:53.6]} 32.
dxe5 {[%clk 0:01:48.6]} 32... Bxe5 {[%clk 0:00:55.5]} 33. Nxe5+ {[%clk
0:01:49.2]} 33... fxe5 {[%clk 0:00:57.4]} 34. Qb8 {[%clk 0:01:43.8]} 34... Kf6
{[%clk 0:00:44.4]} 35. c3 {[%clk 0:01:27.2]} 35... Bf7 {[%clk 0:00:36]} 36. g4
{[%clk 0:01:20.7]} 36... Ke6 {[%clk 0:00:17.8]} 37. g5 {[%clk 0:01:17.2]} 37...
Qd6 {[%clk 0:00:15.3]} 38. Qh8 {[%clk 0:01:09.4]} 38... Qe7 {[%clk 0:00:15.5]}
39. h4 {[%clk 0:01:10.3]} 39... Kd6 {[%clk 0:00:16.6]} 40. Kg2 {[%clk
0:01:05.1]} 40... Kc5 {[%clk 0:00:16.9]} 41. Qb8 {[%clk 0:01:04.1]} 41... Bc4
{[%clk 0:00:11.6]} 42. f3 {[%clk 0:01:02.2]} 42... Bb3 {[%clk 0:00:09.2]} 43.
Kf2 {[%clk 0:00:56.8]} 43... Bc4 {[%clk 0:00:10.2]} 44. Ke1 {[%clk 0:00:40.1]}
44... Bf7 {[%clk 0:00:10]} 45. Ke2 {[%clk 0:00:35.6]} 45... Qe8 {[%clk
0:00:10.4]} 46. Qa7+ {[%clk 0:00:32.5]} 46... Kd6 {[%clk 0:00:11.6]} 47. Qa3+
{[%clk 0:00:24.8]} 47... Kc7 {[%clk 0:00:12.3]} 48. Qa7+ {[%clk 0:00:24.4]}
48... Kd6 {[%clk 0:00:13.3]} 49. Nc2 {[%clk 0:00:24.3]} 49... Bc4+ {[%clk
0:00:12.8]} 50. Kf2 {[%clk 0:00:25.2]} 50... Qd7 {[%clk 0:00:13.5]} 51. Qb8+
{[%clk 0:00:23.4]} 51... Qc7 {[%clk 0:00:14.3]} 52. Qf8+ {[%clk 0:00:21.4]}
52... Qe7 {[%clk 0:00:15]} 53. Qa8 {[%clk 0:00:22.5]} 53... Qe6 {[%clk
0:00:15.1]} 54. Nb4 {[%clk 0:00:22.4]} 54... Qh3 {[%clk 0:00:15.6]} 55. Qd8+
{[%clk 0:00:19.9]} 55... Kc5 {[%clk 0:00:16.2]} 56. Na6# {[%clk 0:00:18.7]} 1-0

[Event "*** Titled Tuesday 3|2 Blitz"]
[Site "Chess.com"]
[Date "2017.06.06"]
[Round "8"]
[White "Jahonas"]
[Black "Shivagami"]
[Result "1-0"]
[WhiteElo "2196"]
[BlackElo "1994"]
[TimeControl "180+2"]
[EndTime "15:37:05 PDT"]
[Termination "Jahonas won by resignation"]

1. d4 {[%clk 0:03:02]} 1... Nc6 {[%clk 0:02:56.8]} 2. Nf3 {[%clk 0:03:02.8]}
2... d5 {[%clk 0:02:46.9]} 3. g3 {[%clk 0:03:02.1]} 3... Nf6 {[%clk 0:02:46.5]}
4. Bg2 {[%clk 0:03:02.8]} 4... Bg4 {[%clk 0:02:41.6]} 5. O-O {[%clk 0:03:03.1]}
5... Qd7 {[%clk 0:02:39.5]} 6. Ne5 {[%clk 0:03:02.6]} 6... Nxe5 {[%clk
0:02:35.4]} 7. dxe5 {[%clk 0:03:03.6]} 7... Ne4 {[%clk 0:02:36.2]} 8. c4 {[%clk
0:02:59.5]} 8... c6 {[%clk 0:02:31]} 9. f3 {[%clk 0:02:55.5]} 9... Nxg3 {[%clk
0:02:11.9]} 10. hxg3 {[%clk 0:02:53.3]} 10... Bf5 {[%clk 0:02:10.6]} 11. cxd5
{[%clk 0:02:42.2]} 11... cxd5 {[%clk 0:02:09]} 12. e4 {[%clk 0:02:42.8]} 12...
dxe4 {[%clk 0:02:08.6]} 13. fxe4 {[%clk 0:02:43.5]} 13... Bg4 {[%clk 0:02:01.9]}
14. Qxd7+ {[%clk 0:02:40.7]} 14... Bxd7 {[%clk 0:02:03.1]} 15. e6 {[%clk
0:02:25.9]} 15... Bxe6 {[%clk 0:02:01]} 16. Nc3 {[%clk 0:02:24.1]} 16... Bc4
{[%clk 0:01:59.3]} 17. Rd1 {[%clk 0:02:16.4]} 17... e6 {[%clk 0:01:57.9]} 18.
Bf1 {[%clk 0:02:10.7]} 18... Bc5+ {[%clk 0:01:57.3]} 19. Kg2 {[%clk 0:02:10.4]}
19... Bxf1+ {[%clk 0:01:53.7]} 20. Kxf1 {[%clk 0:02:10.5]} 20... Ke7 {[%clk
0:01:52.3]} 21. Ke2 {[%clk 0:02:07.7]} 21... Rad8 {[%clk 0:01:48.8]} 22. Be3
{[%clk 0:02:07]} 22... Bd6 {[%clk 0:01:45.6]} 23. Bxa7 {[%clk 0:02:02.7]} 23...
Bxg3 {[%clk 0:01:43.3]} 24. Bc5+ {[%clk 0:02:03.1]} 24... Ke8 {[%clk 0:01:32.3]}
25. Nb5 {[%clk 0:01:48.4]} 25... f6 {[%clk 0:01:21.5]} 26. Bd6 {[%clk
0:01:38.3]} 26... Bxd6 {[%clk 0:01:13.4]} 27. Nxd6+ {[%clk 0:01:38.8]} 27... Ke7
{[%clk 0:01:14.6]} 28. Nxb7 {[%clk 0:01:27.6]} 28... Rb8 {[%clk 0:01:14.8]} 29.
Nc5 {[%clk 0:01:28.2]} 29... Rxb2+ {[%clk 0:01:09.6]} 30. Rd2 {[%clk 0:01:28.2]}
30... Rxd2+ {[%clk 0:01:08.6]} 31. Kxd2 {[%clk 0:01:28.7]} 31... h5 {[%clk
0:01:08]} 32. Ke3 {[%clk 0:01:09.8]} 32... g5 {[%clk 0:01:08.7]} 33. Nd3 {[%clk
0:01:06.1]} 33... h4 {[%clk 0:01:08.9]} 34. Kf3 {[%clk 0:01:04.3]} 34... f5
{[%clk 0:01:07.4]} 35. Ne5 {[%clk 0:01:00.2]} 35... Kf6 {[%clk 0:01:00.4]} 36.
Nd7+ {[%clk 0:01:00.3]} 36... Kg7 {[%clk 0:00:57.7]} 37. e5 {[%clk 0:00:54.2]}
37... g4+ {[%clk 0:00:52.4]} 38. Kg2 {[%clk 0:00:52.9]} 38... f4 {[%clk
0:00:50.3]} 39. Nf6 {[%clk 0:00:51.2]} 39... h3+ {[%clk 0:00:50.2]} 40. Kf2
{[%clk 0:00:48.1]} 40... g3+ {[%clk 0:00:48.3]} 41. Kf3 {[%clk 0:00:46]} 41...
Rh4 {[%clk 0:00:25.3]} 42. Ne4 {[%clk 0:00:37.3]} 42... g2 {[%clk 0:00:22.1]}
43. Nf2 {[%clk 0:00:32.4]} 43... Kg6 {[%clk 0:00:19.9]} 44. a4 {[%clk
0:00:32.6]} 44... Kf5 {[%clk 0:00:20.4]} 45. a5 {[%clk 0:00:33.4]} 45... Kxe5
{[%clk 0:00:21.1]} 46. a6 {[%clk 0:00:34.7]} 46... Rh8 {[%clk 0:00:21.2]} 47. a7
{[%clk 0:00:35.5]} 47... Kf5 {[%clk 0:00:21.2]} 48. Nxh3 {[%clk 0:00:33.7]}
48... Rxh3+ {[%clk 0:00:18.3]} 49. Kxg2 {[%clk 0:00:34.5]} 49... Rh8 {[%clk
0:00:19.2]} 50. a8=Q {[%clk 0:00:35.2]} 50... Rxa8 {[%clk 0:00:18.7]} 51. Rxa8
{[%clk 0:00:37.1]} 51... e5 {[%clk 0:00:20]} 52. Ra4 {[%clk 0:00:36.5]} 52... e4
{[%clk 0:00:20.5]} 53. Ra5+ {[%clk 0:00:37.5]} 53... Kg4 {[%clk 0:00:20.4]} 54.
Re5 {[%clk 0:00:37.6]} 54... e3 {[%clk 0:00:20]} 55. Re4 {[%clk 0:00:36.4]}
55... Kf5 {[%clk 0:00:19.5]} 56. Kf3 {[%clk 0:00:37.1]} 56... Kg5 {[%clk
0:00:17.1]} 57. Rxf4 {[%clk 0:00:36.7]} 57... e2 {[%clk 0:00:17.4]} 58. Re4
{[%clk 0:00:37.7]} 1-0